[Event "44th Chess Olympiad Open 2022"]
[Site "Chennai"]
[Date "2022.07.29"]
[Round "1.70"]
[White "Esungi, Guy Botetsi"]
[Black "Pinto, Daniel"]
[Result "0-1"]
[WhiteElo "1481"]
[BlackElo "2249"]
[Annotator "NA RC"]
[PlyCount "66"]
[EventDate "2022.??.??"]
[TimeControl "60"]

1. e4 {[%emt 0:00:29]} e5 {[%emt 0:00:17]} 2. Nf3 {[%emt 0:00:40]} Nc6 {
[%emt 0:00:21]} 3. Bc4 {[%emt 0:00:56]} Nf6 {[%emt 0:00:43]} 4. d3 {[%emt 0:00:
00]} Be7 {[%emt 0:00:25]} 5. O-O {[%emt 0:01:06]} O-O {[%emt 0:00:18]} 6. Nc3 {
[%emt 0:01:24]} d6 {[%emt 0:00:10]} 7. Bd2 {[%emt 0:04:48]} Bg4 {[%emt 0:01:12]
} 8. Be3 {[%emt 0:03:01]} Na5 {[%emt 0:02:34]} 9. Nd5 {[%emt 0:04:43]} Nxd5 {
[%emt 0:01:30]} 10. Bxd5 {[%emt 0:00:46]} c6 {[%emt 0:00:10]} 11. Bb3 {[%emt 0:
00:00]} Nxb3 {[%emt 0:01:08]} 12. cxb3 {[%emt 0:00:34]} f5 {[%emt 0:00:17]} 13.
exf5 {[%emt 0:08:49]} Rxf5 {[%emt 0:00:08]} 14. Rc1 {[%emt 0:01:22]} Qf8 {
[%emt 0:00:46]} 15. Rc4 {[%emt 0:03:28]} Bh5 {[%emt 0:00:55]} 16. g4 {[%emt 0:
00:00]} Rxf3 {[%emt 0:00:11]} 17. gxh5 {[%emt 0:01:37]} Qf5 {[%emt 0:00:10]}
18. h6 {[%emt 0:06:04]} d5 {[%emt 0:00:19]} 19. Ra4 {[%emt 0:02:58]} d4 {
[%emt 0:00:25]} 20. Bd2 {[%emt 0:05:31]} Rxd3 {[%emt 0:03:15]} 21. hxg7 {
[%emt 0:02:56]} Bg5 {[%emt 0:00:36]} 22. Qh5 {[%emt 0:09:13]} Rxd2 {[%emt 0:00:
00]} 23. h4 {[%emt 0:03:07]} Kxg7 {[%emt 0:04:25]} 24. Qxg5+ {[%emt 0:04:43]}
Qxg5+ {[%emt 0:00:52]} 25. hxg5 {[%emt 0:00:19]} a6 {[%emt 0:01:12]} 26. Rb1 {
[%emt 0:03:32]} Rf8 {[%emt 0:00:12]} 27. Rf1 {[%emt 0:01:10]} Rf5 {[%emt 0:00:
00]} 28. Kh1 {[%emt 0:04:35]} Rfxf2 {[%emt 0:01:45]} 29. Rxf2 {[%emt 0:03:03]}
Rxf2 {[%emt 0:00:08]} 30. Rc4 {[%emt 0:02:39]} d3 {[%emt 0:00:17]} 31. Rc1 {
[%emt 0:01:33]} d2 {[%emt 0:00:06]} 32. Rd1 {[%emt 0:02:27]} e4 {[%emt 0:00:25]
} 33. Kg1 {[%emt 0:00:39]} e3 {[%emt 0:00:07]} 0-1

[Event "44th Chess Olympiad Open 2022"]
[Site "Chennai"]
[Date "2022.07.29"]
[Round "1.71"]
[White "Ahmad, Md Siraj Munir"]
[Black "Saraci, Nderim"]
[Result "0-1"]
[WhiteElo "2035"]
[BlackElo "2495"]
[Annotator "TA"]
[PlyCount "56"]
[EventDate "2022.??.??"]
[TimeControl "60"]

{[%evp 21,56,0,0,10,12,4,6,-1,10,-5,0,-14,-14,-27,-29,-33,-44,-49,-37,-89,-89,
-89,-63,-89,-89,-89,-89,-172,-187,-187,-185,-314,-299,-306,-302,-270,-263]} 1.
e4 {[%emt 0:00:07]} e5 {[%emt 0:00:15]} 2. Nf3 {[%emt 0:00:22]} Nc6 {[%emt 0:
00:00]} 3. Nc3 {[%emt 0:00:34]} Nf6 {[%emt 0:00:28]} 4. d4 {[%emt 0:01:31]}
exd4 {[%emt 0:00:08]} 5. Nxd4 {[%emt 0:00:09]} Bb4 {[%emt 0:00:07]} 6. Nxc6 {
[%emt 0:00:57]} bxc6 {[%emt 0:00:06]} 7. Bd3 {[%emt 0:00:14]} d5 {[%emt 0:00:
00]} 8. exd5 {[%emt 0:00:36]} O-O {[%emt 0:00:10]} 9. O-O {[%emt 0:01:59]} cxd5
{[%emt 0:00:06]} 10. Bg5 {[%emt 0:02:16]} c6 {[%emt 0:02:50]} 11. Qf3 {[%emt 0:
00:00]} Re8 {[%emt 0:03:26] 11...h6 is a critical line.} 12. Bxf6 {[%emt 0:00:
00] C47: Scotch Four Knights and Four Knights with 4 g3.} Qxf6 {[%emt 0:00:07]}
13. Qxf6 {[%emt 0:01:30]} gxf6 {[%emt 0:00:08]} 14. Rae1 {[%emt 0:01:20] The
position is equal.} Bd7 {[%emt 0:01:56] [#]} 15. a3 $146 {[%emt 0:02:55]} ({
Predecessor:} 15. Re3 Rxe3 16. fxe3 Kg7 17. e4 Bxc3 18. bxc3 Rb8 19. exd5 cxd5
20. c4 dxc4 21. Bxc4 {½-½ (52) Garcia Fuentes,R (1447)-Lopez Perez,C (1399)
Havana 2018}) 15... Bd6 {[%emt 0:03:40]} 16. Ne2 {[%emt 0:03:50]} c5 {[%emt 0:
00:00][%cal Yc6c5,Yc5c4] [#] aiming for ...c4.} 17. Ng3 {[%emt 0:00:00]} c4 {
[%emt 0:03:29]} 18. Bf5 {[%emt 0:06:14]} Be6 {[%emt 0:03:23]} 19. c3 {[%emt 0:
10:43]} Rab8 $36 {[%emt 0:06:20] Black has good play.} 20. Bxe6 {[%emt 0:05:41]
} ({White should try} 20. Re2 $15) 20... fxe6 $17 {[%emt 0:00:00]} 21. Re2 {
[%emt 0:01:01]} Rb6 {[%emt 0:01:37]} 22. Nf5 {[%emt 0:04:47]} Bc5 {[%emt 0:03:
14]} 23. Ne3 {[%emt 0:00:30][%cal Ye3d5] [#] Black must now prevent Nxd5!} Kf7
{[%emt 0:00:50] Black is more active.} 24. Rfe1 {[%emt 0:00:00]} (24. Rd1 $17)
24... Bxe3 $19 {[%emt 0:01:22]} 25. fxe3 {[%emt 0:00:19]} Reb8 {[%emt 0:00:05]}
26. e4 {[%emt 0:02:18]} (26. Rb1 {was the only defense.}) 26... Rxb2 {[%emt 0:
00:20] Black has a decisive advantage.} 27. exd5 {[%emt 0:00:00]} Rxe2 {
[%emt 0:00:27]} ({And not} 27... exd5 28. Re7+ Kg6 29. Rf1 $17) 28. Rxe2 {
[%emt 0:00:09]} exd5 {[%emt 0:00:04] Weighted Error Value: White=0.22 (precise)
/Black=0.03 (flawless)} 0-1

[Event "44th Chess Olympiad Open 2022"]
[Site "Chennai"]
[Date "2022.07.29"]
[Round "1.71"]
[White "Sharikhan, Shawal"]
[Black "Asllani, Muhamet"]
[Result "0-1"]
[WhiteElo "1789"]
[BlackElo "2235"]
[Annotator "NA RC"]
[PlyCount "43"]
[EventDate "2022.??.??"]
[TimeControl "60"]

1. e4 {[%emt 0:00:35]} e5 {[%emt 0:00:10]} 2. Nf3 {[%emt 0:00:06]} Nc6 {
[%emt 0:00:07]} 3. Bc4 {[%emt 0:00:19]} Nf6 {[%emt 0:00:14]} 4. Ng5 {[%emt 0:
00:00]} d5 {[%emt 0:00:42]} 5. exd5 {[%emt 0:00:08]} Na5 {[%emt 0:01:09]} 6.
Bb5+ {[%emt 0:01:40]} c6 {[%emt 0:00:28]} 7. dxc6 {[%emt 0:00:17]} bxc6 {
[%emt 0:00:37]} 8. Be2 {[%emt 0:01:10]} h6 {[%emt 0:00:16]} 9. Nf3 {[%emt 0:00:
00]} e4 {[%emt 0:02:06]} 10. Ne5 {[%emt 0:00:39]} Bc5 {[%emt 0:06:26]} 11. c3 {
[%emt 0:06:02]} Qd5 {[%emt 0:03:54]} 12. d4 {[%emt 0:07:06]} exd3 {[%emt 0:00:
00]} 13. Nxd3 {[%emt 0:01:40]} Bd6 {[%emt 0:00:49]} 14. Bf3 {[%emt 0:11:00]}
Qe6+ {[%emt 0:02:28]} 15. Qe2 {[%emt 0:05:05]} Qxe2+ {[%emt 0:00:09]} 16. Bxe2
{[%emt 0:01:47]} O-O {[%emt 0:00:17]} 17. O-O {[%emt 0:02:47]} Re8 {[%emt 0:00:
00]} 18. Re1 {[%emt 0:30:01]} Ba6 {[%emt 0:01:54]} 19. Be3 {[%emt 0:01:00]} Nc4
{[%emt 0:01:20]} 20. Bf1 {[%emt 0:04:12]} Ng4 {[%emt 0:01:30]} 21. Nd2 {
[%emt 0:14:02]} Ngxe3 {[%emt 0:00:13]} 22. fxe3 {[%emt 0:01:15]} 0-1

[Event "44th Chess Olympiad Open 2022"]
[Site "Chennai"]
[Date "2022.07.29"]
[Round "1.72"]
[White "Escalona Landi, Samid Eduardo"]
[Black "Sihlongonyane, Sikhanyiso"]
[Result "1-0"]
[WhiteElo "2191"]
[BlackElo "1658"]
[Annotator "RC"]
[PlyCount "83"]
[EventDate "2022.??.??"]
[TimeControl "60"]

1. Nf3 {[%emt 0:00:25]} d5 {[%emt 0:00:46]} 2. c4 {[%emt 0:00:06]} e6 {[%emt 0:
00:00]} 3. b3 {[%emt 0:02:34]} Nf6 {[%emt 0:00:08]} 4. Bb2 {[%emt 0:00:01]} Be7
{[%emt 0:00:10]} 5. g3 {[%emt 0:00:20]} O-O {[%emt 0:00:07]} 6. Bg2 {[%emt 0:
00:00]} c5 {[%emt 0:00:48]} 7. O-O {[%emt 0:00:08]} Nc6 {[%emt 0:00:29]} 8. e3
{[%emt 0:00:02]} dxc4 {[%emt 0:05:30]} 9. bxc4 {[%emt 0:00:20]} Qb6 {[%emt 0:
00:00]} 10. Qb3 {[%emt 0:01:42]} Qxb3 {[%emt 0:01:45]} 11. axb3 {[%emt 0:00:02]
} Rd8 {[%emt 0:00:17]} 12. d4 {[%emt 0:00:01]} Bd7 {[%emt 0:07:54]} 13. Nc3 {
[%emt 0:00:01]} Nb4 {[%emt 0:04:53]} 14. Ne5 {[%emt 0:00:13]} Bc6 {[%emt 0:00:
00]} 15. Nxc6 {[%emt 0:00:50]} Nxc6 {[%emt 0:02:01]} 16. d5 {[%emt 0:02:14]}
exd5 {[%emt 0:00:27]} 17. cxd5 {[%emt 0:00:02]} Nb4 {[%emt 0:01:04]} 18. Rfd1 {
[%emt 0:00:01]} a6 {[%emt 0:08:05]} 19. Rac1 {[%emt 0:03:46]} Rac8 {[%emt 0:00:
00]} 20. Bh3 {[%emt 0:00:24]} Rb8 {[%emt 0:00:30]} 21. e4 {[%emt 0:00:13]} b5 {
[%emt 0:01:41]} 22. Bf1 {[%emt 0:23:39]} h6 {[%emt 0:03:34]} 23. Rd2 {[%emt 0:
00:00]} Ng4 {[%emt 0:10:38]} 24. Be2 {[%emt 0:00:00]} f5 {[%emt 0:09:32]} 25.
exf5 {[%emt 0:00:00]} Nf6 {[%emt 0:00:05]} 26. Rcd1 {[%emt 0:00:00]} Rd6 {
[%emt 0:02:32]} 27. Ba3 {[%emt 0:00:59]} Rbd8 {[%emt 0:02:24]} 28. Bf3 {
[%emt 0:00:08]} Kf7 {[%emt 0:07:43]} 29. h4 {[%emt 0:01:39]} Ke8 {[%emt 0:00:
00]} 30. g4 {[%emt 0:00:46]} h5 {[%emt 0:03:39]} 31. g5 {[%emt 0:00:10]} Ng4 {
[%emt 0:00:05]} 32. Ne4 {[%emt 0:00:02]} Rb6 {[%emt 0:06:27]} 33. d6 {[%emt 0:
00:00]} Bf8 {[%emt 0:00:31]} 34. Nxc5 {[%emt 0:01:10]} Rbxd6 {[%emt 0:03:13]}
35. Re2+ {[%emt 0:00:01]} Kf7 {[%emt 0:01:14]} 36. Rxd6 {[%emt 0:00:03]} Rxd6 {
[%emt 0:01:27]} 37. Bxb4 {[%emt 0:00:16]} Rd1+ {[%emt 0:00:01]} 38. Kg2 {
[%emt 0:00:03]} a5 {[%emt 0:01:08]} 39. g6+ {[%emt 0:00:02]} Kg8 {[%emt 0:00:
00]} 40. Re8 {[%emt 0:00:03]} Nf6 {[%emt 0:02:09]} 41. Ra8 {[%emt 0:30:04]} Rc1
{[%emt 0:04:54]} 42. Ne6 {[%emt 0:00:00]} 1-0

[Event "44th Chess Olympiad Open 2022"]
[Site "Chennai"]
[Date "2022.07.29"]
[Round "1.72"]
[White "Hlophe, Smilo"]
[Black "Castro Torres, Jose Luis"]
[Result "0-1"]
[WhiteElo "1731"]
[BlackElo "2326"]
[Annotator "TA"]
[PlyCount "109"]
[EventDate "2022.??.??"]
[TimeControl "60"]

{[%evp 18,109,0,-13,-19,-34,0,-32,-29,-34,-58,-38,-40,-27,-17,-2,16,0,77,72,
122,120,121,42,97,87,84,87,79,25,153,156,161,172,177,148,166,149,265,123,112,
49,45,44,39,50,47,45,52,0,0,0,0,0,0,0,0,0,0,0,8,2,118,118,256,0,0,-52,0,0,0,0,
0,0,0,-8,-8,-37,8,-35,-37,-420,-432,-637,-633,-29972,-29975,-29974,-29976,
-29975,-29977,-29978,-29979,-29993]} 1. d4 {[%emt 0:00:04]} Nf6 {[%emt 0:00:31]
} 2. c4 {[%emt 0:00:01]} g6 {[%emt 0:00:33]} 3. g3 {[%emt 0:00:08]} Bg7 {
[%emt 0:00:03]} 4. Bg2 {[%emt 0:00:04]} d6 {[%emt 0:00:19]} 5. Nc3 {[%emt 0:00:
00]} O-O {[%emt 0:00:19]} 6. Nf3 {[%emt 0:00:08]} Nc6 {[%emt 0:00:35]} 7. d5 {
[%emt 0:00:11]} Na5 {[%emt 0:00:38]} 8. Qd3 {[%emt 0:00:53]} c5 {[%emt 0:02:08]
[%cal Yc7c5,Yc5c4]} 9. O-O {[%emt 0:00:29]} a6 {[%emt 0:03:45]} 10. Rb1 {
[%emt 0:02:05]} b5 {[%emt 0:09:21] aiming for ...b4. E66: King's Indian:
Fianchetto: 6...c5 7 0-0 Nc6 8 d5.} 11. cxb5 {[%emt 0:01:32]} c4 {[%emt 0:00:
00]} 12. Qd1 {[%emt 0:03:51]} axb5 {[%emt 0:03:06] Black is slightly better.}
13. Nxb5 {[%emt 0:00:10]} Bf5 {[%emt 0:00:07]} 14. Ra1 {[%emt 0:00:22] [#]} Nb3
$1 {[%emt 0:00:05]} 15. axb3 {[%emt 0:00:26]} Rxa1 {[%emt 0:00:05]} 16. bxc4 {
[%emt 0:00:09]} Qc8 {[%emt 0:15:31]} (16... Bd7 $5 {[%cal Rd7b5]}) 17. b3 {
[%emt 0:00:41][%cal Yb2b3,Yb3b4]} Ne4 {[%emt 0:31:12]} (17... Bd7 $11 {keeps
the balance.}) 18. Nfd4 $16 {[%emt 0:00:21]} Nc5 {[%emt 0:00:14] [#]} (18...
Re8 $142) 19. Nc6 $146 {[%emt 0:04:41]} ({Predecessor:} 19. Re1 Bh6 20. f4 Bg7
21. e4 Bh3 22. Nc6 Re8 23. b4 Bxg2 24. bxc5 Bh3 25. Qe2 {½-½ (41) Elarbi,A 
(2286)-Nafri,K (2157) Nouakchott 2013}) 19... Re8 {[%emt 0:01:32]} 20. Nbd4 {
[%emt 0:00:37] Pair of Knights!} (20. b4 $16 Na6 21. Qb3) 20... Be4 {[%emt 0:
10:44]} ({Black should play} 20... Bh6 $14 21. f4 (21. Nxf5 Qxf5 22. Nd4 Qd7
$11) 21... e5 22. dxe6 Bxe6) 21. b4 $1 {[%emt 0:02:05]} Bxg2 {[%emt 0:00:00]}
22. Kxg2 {[%emt 0:00:06]} Nd7 {[%emt 0:07:20]} 23. Qc2 {[%emt 0:01:31]} ({
White should try} 23. e4 $16) 23... Nb6 {[%emt 0:04:04]} (23... Bxd4 $11 24.
Nxd4 Qa8) 24. Nb3 $1 {[%emt 0:08:40]} Ra8 {[%emt 0:00:23]} 25. e4 {[%emt 0:00:
00]} e6 {[%emt 0:02:33]} 26. Be3 {[%emt 0:00:03]} exd5 {[%emt 0:00:14]} 27.
cxd5 {[%emt 0:02:04]} Nd7 {[%emt 0:00:27] [#]} (27... Qa6 $16 {might work
better.}) 28. Rc1 {[%emt 0:00:10]} (28. b5 $1 $18) 28... Qa6 {[%emt 0:00:26]}
29. Bd4 {[%emt 0:02:32]} (29. Nba5 $16) 29... Qa2 $14 {[%emt 0:00:24]} 30. Bxg7
{[%emt 0:00:12]} Qxc2 {[%emt 0:00:14]} 31. Rxc2 {[%emt 0:00:25]} Kxg7 {[%emt 0:
00:00]} 32. f3 {[%emt 0:00:22]} Ra3 {[%emt 0:00:36]} 33. Nbd4 {[%emt 0:00:18]}
({Better is} 33. Nba5 $1 $14) 33... Rea8 $1 $11 {[%emt 0:00:48]} 34. Nb5 {
[%emt 0:09:52][%csl Ya3,Yd6]} Ra2 {[%emt 0:00:01]} 35. Rf2 {[%emt 0:00:22]} Ne5
{[%emt 0:01:19]} ({Don't take} 35... Rxf2+ 36. Kxf2 Ra2+ 37. Ke3 $16) 36. Nxd6
{[%emt 0:11:30]} Nd3 {[%emt 0:00:02] Pin} 37. Rxa2 {[%emt 0:00:00]} Rxa2+ {
[%emt 0:00:01] Endgame KRN-KNN} 38. Kh3 {[%emt 0:05:37]} Rb2 {[%emt 0:00:56]}
39. b5 {[%emt 0:00:11] Black must now prevent e5.} h5 {[%emt 0:01:02]} (39...
Nf2+ $11 40. Kh4 f6) 40. e5 $16 {[%emt 0:07:23] Strongly threatening e6.} g5 {
[%emt 0:00:52] [#]} (40... Nf2+ $16 41. Kh4 f6) 41. Nf5+ $2 {[%emt 0:01:17]} (
41. Ne4 $1 $18 Rxb5 42. e6 fxe6 43. dxe6) 41... Kg6 $11 {[%emt 0:30:30]} 42.
Nfd4 {[%emt 0:30:48]} (42. Nce7+ $11 Kh7 43. e6 Nf2+ 44. Kg2 Ng4+ 45. Kh1 Rb1+
46. Kg2 Rb2+ 47. Kh1 Rb1+ 48. Kg2 Rb2+) 42... f5 {[%emt 0:00:00]} (42... Nf2+
$1 $15 43. Kg2 Ng4+ 44. Kh1 Rb1+ 45. Kg2 Ne3+ 46. Kf2 Nxd5) 43. Ne7+ {[%emt 0:
00:00]} Kf7 {[%emt 0:00:00]} 44. Nexf5 {[%emt 0:00:00]} Nxe5 {[%emt 0:00:00]}
45. g4 {[%emt 0:00:00]} ({Reject} 45. f4 Ng4 46. Nf3 Nf2+ 47. Kg2 Nd3+ 48. Kg1
gxf4 49. Nd6+ Ke7 50. Nf5+ Kf6 $17) 45... h4 {[%emt 0:00:00]} 46. f4 {[%emt 0:
00:00]} gxf4 {[%emt 0:00:00][%cal Yg5f4,Yf4f3,Yf3f2]} 47. Kxh4 {[%emt 0:00:00]}
Rxh2+ {[%emt 0:00:00]} 48. Kg5 {[%emt 0:00:00]} f3 {[%emt 0:00:00] ...f2 is
the strong threat.} 49. Kf4 $2 {[%emt 0:00:00]} (49. Ne3 $15) 49... f2 $19 {
[%emt 0:00:00]} 50. Ne3 {[%emt 0:00:00] [#]} (50. Ng3 $142 Rh3 51. Nf1 Ng6+ 52.
Kg5) 50... Nc4 $1 {[%emt 0:00:00] ( -> ...Nxe3)} 51. Ndf5 {[%emt 0:00:00]} (51.
Nf1 Rh1) 51... Nxe3 {[%emt 0:00:00] Black mates.} 52. Nxe3 {[%emt 0:00:00]} Rh3
{[%emt 0:00:00]} 53. Nf1 {[%emt 0:00:00]} Rh1 {[%emt 0:00:00]} 54. Ng3 {
[%emt 0:00:00]} Rg1 {[%emt 0:00:00]} 55. Ke4 {[%emt 0:04:01] What a fight!
Weighted Error Value: White=0.59/Black=0.22 (precise)} 0-1

[Event "44th Chess Olympiad Open 2022"]
[Site "Chennai"]
[Date "2022.07.29"]
[Round "1.73"]
[White "Mwali, Chitumbo"]
[Black "McCoy, Tom"]
[Result "1-0"]
[WhiteElo "2320"]
[BlackElo "1812"]
[Annotator "TA"]
[PlyCount "27"]
[EventDate "2022.??.??"]
[TimeControl "60"]

{[%evp 9,27,9,0,5,14,9,48,16,39,38,54,56,304,303,332,312,342,331,604,597]} 1.
c4 {[%emt 0:00:33]} e5 {[%emt 0:00:12]} 2. g3 {[%emt 0:00:42]} Nf6 {[%emt 0:00:
00]} 3. Bg2 {[%emt 0:00:39]} Nc6 {[%emt 0:00:30]} 4. Nc3 {[%emt 0:00:12]} Bb4 {
[%emt 0:00:29]} 5. Nd5 {[%emt 0:00:22]} O-O {[%emt 0:01:14]} 6. e3 {[%emt 0:00:
00] A25: English Opening vs King's Indian with ...Nc6 but without early d3.} d6
{[%emt 0:02:53]} 7. Ne2 {[%emt 0:01:48]} Re8 {[%emt 0:03:37]} 8. O-O {[%emt 0:
00:00] White is slightly better.} (8. a3 $5 {[%cal Rd5b4]} Ba5 9. b4 $11) 8...
Bg4 {[%emt 0:03:36]} 9. h3 {[%emt 0:00:57] [#]} Be6 $146 {[%emt 0:05:51]} ({
Predecessor:} 9... Bh5 10. a3 Bc5 11. b4 Bb6 12. Bb2 Nxd5 13. cxd5 Ne7 14. f4
f6 15. g4 Bf7 16. fxe5 fxe5 {1-0 (46) Karavaeva,O (2260)-Yedidia,D (1991)
Chess.com INT 2021}) 10. a3 {[%emt 0:07:56]} Bc5 {[%emt 0:01:41] [#]} (10...
Ba5 $14) 11. d4 $1 $18 {[%emt 0:01:04]} exd4 {[%emt 0:03:27]} 12. exd4 {
[%emt 0:00:45]} Bxd5 {[%emt 0:00:30]} 13. cxd5 {[%emt 0:00:08][%cal Yc4d5,
Yd5c6]} Rxe2 $2 {[%emt 0:00:48]} (13... Nxd4 14. Nxd4 Nd7) 14. dxc6 {[%emt 0:
00:37] White took control after the opening. Weighted Error Value: White=0.05 
(flawless) /Black=0.92} ({Not} 14. Qxe2 Nxd4 15. Qd1 Nd7 $16) 1-0

[Event "44th Chess Olympiad Open 2022"]
[Site "Chennai"]
[Date "2022.07.29"]
[Round "1.73"]
[White "Fancy, Stuart"]
[Black "Bwalya, Gillan"]
[Result "0-1"]
[WhiteElo "1984"]
[BlackElo "2396"]
[Annotator "ChessBase"]
[PlyCount "82"]
[EventDate "2022.??.??"]
[TimeControl "60"]

1. Nc3 {[%emt 0:00:01]} d5 {[%emt 0:01:51]} 2. d4 {[%emt 0:00:19]} Nf6 {
[%emt 0:00:58]} 3. Bg5 {[%emt 0:00:12]} Nbd7 {[%emt 0:00:32]} 4. Nf3 {[%emt 0:
00:00]} c6 {[%emt 0:01:29]} 5. g3 {[%emt 0:00:58]} Qb6 {[%emt 0:02:15]} 6. Rb1
{[%emt 0:01:10]} Ne4 {[%emt 0:01:25]} 7. Bd2 {[%emt 0:09:39]} h6 {[%emt 0:00:
00]} 8. Bg2 {[%emt 0:00:50]} Ndf6 {[%emt 0:02:24]} 9. O-O {[%emt 0:00:33]} Bf5
{[%emt 0:00:45]} 10. Be1 {[%emt 0:03:16]} e6 {[%emt 0:00:52]} 11. Ne5 {[%emt 0:
00:00]} Bd6 {[%emt 0:00:40]} 12. Kh1 {[%emt 0:06:20]} Nxc3 {[%emt 0:05:40]} 13.
Bxc3 {[%emt 0:02:55]} O-O {[%emt 0:00:32]} 14. f3 {[%emt 0:02:51]} c5 {[%emt 0:
00:00]} 15. e4 {[%emt 0:02:18]} Bh7 {[%emt 0:04:28]} 16. dxc5 {[%emt 0:10:25]}
Bxc5 {[%emt 0:03:05]} 17. Qe1 {[%emt 0:12:45]} Rfc8 {[%emt 0:03:48]} 18. Nd3 {
[%emt 0:08:04]} Bd4 {[%emt 0:06:32]} 19. e5 {[%emt 0:04:05]} Nd7 {[%emt 0:00:
00]} 20. f4 {[%emt 0:01:34]} Bxc3 {[%emt 0:06:59]} 21. bxc3 {[%emt 0:00:08]}
Qc6 {[%emt 0:01:37]} 22. c4 {[%emt 0:00:22]} Qxc4 {[%emt 0:00:35]} 23. Rxb7 {
[%emt 0:00:15]} Qc6 {[%emt 0:10:59]} 24. Rb3 {[%emt 0:05:25]} Qxc2 {[%emt 0:00:
00]} 25. f5 {[%emt 0:03:31]} Rab8 {[%emt 0:06:21]} 26. Nb4 {[%emt 0:05:04]} Qc4
{[%emt 0:00:54]} 27. Nxd5 {[%emt 0:04:27]} exd5 {[%emt 0:04:26]} 28. e6 {
[%emt 0:00:08]} Nf6 {[%emt 0:06:57]} 29. exf7+ {[%emt 0:01:17]} Kf8 {[%emt 0:
00:00]} 30. Qe5 {[%emt 0:00:32]} Rxb3 {[%emt 0:02:02]} 31. Qd6+ {[%emt 0:00:08]
} Kxf7 {[%emt 0:00:06]} 32. Qe6+ {[%emt 0:00:04]} Kf8 {[%emt 0:00:20]} 33. Qd6+
{[%emt 0:01:24]} Kg8 {[%emt 0:00:27]} 34. axb3 {[%emt 0:00:17]} Qc7 {[%emt 0:
00:00]} 35. Bxd5+ {[%emt 0:01:30]} Kh8 {[%emt 0:00:21]} 36. Qxc7 {[%emt 0:00:
00]} Rxc7 37. Be6 Bg8 {[%emt 0:00:24]} 38. Bxg8 {[%emt 0:00:45]} Kxg8 {[%emt 0:
00:00]} 39. Rf3 {[%emt 0:01:14]} Rb7 {[%emt 0:00:09]} 40. Kg2 {[%emt 0:00:17]}
Kf7 {[%emt 0:00:09]} 41. h3 {[%emt 0:30:17]} Ne4 {[%emt 0:30:20]} 0-1

[Event "44th Chess Olympiad Open 2022"]
[Site "Chennai"]
[Date "2022.07.29"]
[Round "1.73"]
[White "Jones, Rupert"]
[Black "Phiri, Richmond"]
[Result "0-1"]
[WhiteElo "1766"]
[BlackElo "2293"]
[Annotator "ChessBase"]
[PlyCount "66"]
[EventDate "2022.??.??"]
[TimeControl "60"]

1. e4 {[%emt 0:00:05]} c5 {[%emt 0:00:41]} 2. Nf3 {[%emt 0:08:14]} e6 {[%emt 0:
00:00]} 3. d4 {[%emt 0:02:42]} cxd4 {[%emt 0:02:33]} 4. Nxd4 {[%emt 0:06:31]}
a6 {[%emt 0:00:08]} 5. Be2 {[%emt 0:02:41]} Nf6 {[%emt 0:00:12]} 6. Nc3 {
[%emt 0:04:36]} d6 {[%emt 0:00:04]} 7. O-O {[%emt 0:02:37]} Be7 {[%emt 0:00:04]
} 8. Be3 {[%emt 0:01:28]} O-O {[%emt 0:00:05]} 9. a4 {[%emt 0:04:30]} Qc7 {
[%emt 0:05:00]} 10. a5 {[%emt 0:15:16]} Bd7 {[%emt 0:00:36]} 11. f3 {[%emt 0:
00:00]} Nc6 {[%emt 0:00:54]} 12. Nb3 {[%emt 0:01:23]} Nb4 {[%emt 0:11:27]} 13.
Bb6 {[%emt 0:02:00]} Qc8 {[%emt 0:11:57]} 14. Rc1 {[%emt 0:08:07]} e5 {[%emt 0:
00:00]} 15. Nd5 {[%emt 0:06:30]} Nbxd5 {[%emt 0:00:45]} 16. exd5 {[%emt 0:00:
00]} Ba4 {[%emt 0:00:33]} 17. Ra1 {[%emt 0:04:06]} Bb5 {[%emt 0:03:31]} 18.
Bxb5 {[%emt 0:12:22]} axb5 {[%emt 0:00:06]} 19. Qd2 {[%emt 0:03:27]} Qc4 {
[%emt 0:01:05]} 20. Rfd1 {[%emt 0:02:17]} Rfc8 {[%emt 0:00:47]} 21. Rac1 {
[%emt 0:00:45]} Nd7 {[%emt 0:02:04]} 22. Qf2 {[%emt 0:05:56]} Nxb6 {[%emt 0:00:
00]} 23. Qxb6 {[%emt 0:02:43]} Bg5 {[%emt 0:04:24]} 24. Ra1 {[%emt 0:00:12]}
Qxc2 {[%emt 0:03:05]} 25. Qxb5 {[%emt 0:00:41]} h5 {[%emt 0:09:06]} 26. Qd3 {
[%emt 0:01:39]} Qxb2 {[%emt 0:00:41]} 27. Rdb1 {[%emt 0:00:35]} Qc2 {[%emt 0:
00:00]} 28. Qxc2 {[%emt 0:00:50]} Rxc2 {[%emt 0:00:04]} 29. Ra4 {[%emt 0:01:08]
} Be3+ {[%emt 0:02:44]} 30. Kh1 {[%emt 0:00:16]} Rac8 {[%emt 0:00:30]} 31. Rb4
{[%emt 0:00:32]} R8c7 {[%emt 0:00:15]} 32. h3 {[%emt 0:00:17]} Ra2 {[%emt 0:00:
00]} 33. Rb5 {[%emt 0:00:25]} Rcc2 {[%emt 0:00:20]} 0-1